bitfinex-derivatives/quotes_SOLF0:USTF0_20250319
["timestamp","ask_amount","ask_price","bid_price","bid_amount"]
[1742412792837,0.05043563,132.59,132.57,7.542]
[1742412793228,0.05043563,132.59,132.56,0.05581458]
[1742412794135,3.563e-05,132.59,132.58,7.5417]
[1742412794333,226.44,132.66,132.57,34.41096604]
[1742412794533,226.44,132.66,132.58,3.8945]
[1742412795137,226.44,132.66,132.59,7.5408]
[1742412795340,226.44,132.66,132.58,3.8945]
[1742412795635,0.05826305,132.64,132.61,0.05477867]
[1742412796233,0.05826305,132.64,132.63,7.5388]
[1742412796633,0.05826305,132.64,132.63,34.41096604]
[1742412796938,0.05826305,132.64,132.61,0.05477867]
[1742412797832,0.05826305,132.64,132.61,7.59447867]
[1742412798032,0.05826305,132.64,132.61,0.05477867]
[1742412798437,0.05826305,132.64,132.61,33.31477867]
[1742412798941,0.05826305,132.64,132.61,0.05477867]
[1742412799139,7.5387,132.64,132.61,0.05477867]
[1742412799340,33.2406673,132.66,132.61,0.05477867]
[1742412800331,0.04933623,132.65,132.61,0.05477867]
[1742412800836,7.5389,132.63,132.61,0.05477867]
[1742412801242,0.04933623,132.65,132.61,0.05477867]
[1742412801442,7.5394,132.62,132.61,0.05477867]
[1742412801835,0.04933623,132.65,132.56,33.24]
[1742412802238,33.2406673,132.66,132.56,33.24]
[1742412802835,0.05683027,132.62,132.56,33.24]
[1742412803142,33.29683027,132.62,132.6,0.0515212]
[1742412803342,0.05683027,132.62,132.6,0.0515212]
[1742412804044,37.2929,132.68,132.61,34.41096604]
[1742412805138,0.05035006,132.66,132.63,0.0508367]
[1742412805733,7.5382,132.64,132.63,0.0508367]
[1742412806639,33.29035006,132.66,132.63,0.0508367]
[1742412806640,7.5379,132.65,132.63,0.0508367]
[1742412807141,7.5382,132.64,132.63,0.0508367]
[1742412807636,7.5382,132.64,132.58,34.41096604]
[1742412807844,33.29035006,132.66,132.57,33.24]
[1742412808039,33.24,132.66,132.56,40.70098678]
[1742412808239,7.5418,132.58,132.56,40.70098678]
[1742412808743,33.22,132.62,132.56,40.70098678]
[1742412808939,0.04990043,132.58,132.56,40.75451596]
[1742412809340,0.04990043,132.58,132.56,0.05352918]
[1742412812044,7.5422,132.57,132.56,0.05352918]
[1742412812945,0.04990043,132.58,132.56,0.05352918]
[1742412813648,226.22,132.63,132.56,34.46449522]
[1742412813942,7.5384,132.64,132.61,7.5399]
[1742412814140,8.0148,132.65,132.59,67.63096604]
[1742412814344,7.5368,132.67,132.64,7.5381]
[1742412814646,33.22,132.68,132.59,67.63096604]
[1742412814838,0.05581727,132.67,132.64,0.05774846]
[1742412815039,7.59281727,132.67,132.64,7.59584846]
[1742412815241,0.05581727,132.67,132.64,0.05774846]
[1742412815943,0.05581727,132.67,132.65,34.41096604]
[1742412816150,4.2495,132.73,132.65,34.41096604]
[1742412816649,7.5343,132.71,132.65,34.41096604]
[1742412816853,4.2495,132.73,132.65,34.41096604]
[1742412817149,7.5374,132.66,132.63,33.22]
[1742412817344,33.26882259,132.7,132.63,33.22]
[1742412817550,33.22,132.7,132.63,33.27301504]
[1742412817746,0.04882259,132.68,132.63,33.27301504]
[1742412818951,0.04882259,132.68,132.64,47.20166077]
[1742412819349,7.5377,132.65,132.64,47.20166077]
[1742412819747,7.5377,132.65,132.63,81.32649419]
[1742412819946,7.5382,132.64,132.63,81.32649419]
[1742412820450,7.5382,132.64,132.63,69.87789419]
[1742412821255,7.5388,132.63,132.62,9.31e-06]
[1742412821550,55.89123718,132.63,132.61,26.75846126]
[1742412821751,266.9394,132.62,132.61,0.04859875]
[1742412822250,274.4794,132.62,132.61,9.875e-05]
[1742412822852,7.5434,132.55,132.54,121.21230295]
[1742412824749,0.05039772,132.56,132.53,0.05013794]
[1742412825754,7.5439,132.54,132.53,0.05013794]
[1742412826051,259.48,132.54,132.47,298.74463587]
[1742412826250,55.89123718,132.52,132.47,298.74463587]
[1742412826451,33.2,132.52,132.47,298.74463587]
[1742412827253,0.05717414,132.51,132.48,0.04777548]
[1742412828153,7.5462,132.5,132.48,0.04777548]
[1742412828358,0.05717414,132.51,132.48,0.04777548]
[1742412828559,7.5468,132.49,132.48,0.04777548]
[1742412829060,7.5468,132.49,132.48,7.548e-05]
[1742412829956,7.54,132.49,132.38,12.0948]
[1742412830157,55.89123718,132.46,132.38,12.0948]
[1742412830555,33.22,132.48,132.38,12.0948]
[1742412830760,33.22,132.48,132.38,45.3148]
[1742412830959,40.7678,132.48,132.38,45.3148]
[1742412831162,0.05575506,132.44,132.42,0.05691838]
[1742412832356,33.22,132.48,132.42,33.27691838]
[1742412832558,33.22,132.51,132.42,33.27691838]
[1742412832864,33.22,132.51,132.42,33.22]
[1742412833165,55.89123718,132.49,132.39,33.22]
[1742412833361,55.89123718,132.49,132.41,7.5511]
[1742412833562,0.05583045,132.45,132.43,0.0549159]
[1742412833863,33.22,132.51,132.44,7.5491]
[1742412834065,33.22,132.51,132.43,33.22]
[1742412834566,33.22,132.51,132.46,7.5484]
[1742412834866,33.22,132.53,132.46,7.5484]
[1742412835063,0.05275711,132.5,132.47,0.05063571]
[1742412836767,0.05275711,132.5,132.47,33.27063571]
[1742412837462,0.05275711,132.5,132.49,7.5468]
[1742412837667,226.26,132.54,132.47,89.16187289]
[1742412838064,226.26,132.54,132.47,33.27063571]
[1742412838669,0.0566124,132.52,132.47,33.27063571]
[1742412839065,0.0566124,132.52,132.47,40.81823571]
[1742412839264,0.0566124,132.52,132.47,33.27063571]
[1742412839669,0.0566124,132.52,132.48,7.5469]
[1742412839866,0.0566124,132.52,132.47,33.27063571]
[1742412840267,0.0566124,132.52,132.51,7.5456]
[1742412840666,0.0566124,132.52,132.5,0.0563522]
[1742412842371,260.8426293,132.6,132.51,33.2]
[1742412842670,226.4,132.6,132.52,3.9802]
[1742412842971,226.4,132.6,132.52,8.1886]
[1742412843369,0.02739478,132.57,132.55,0.05336358]
[1742412844061,7.5428,132.56,132.55,0.05336358]
[1742412844467,7.5428,132.56,132.45,359.0]
[1742412844468,34.4426293,132.56,132.47,33.2]
[1742412844669,33.2,132.55,132.47,33.2]
[1742412844869,33.2,132.56,132.47,33.2]
[1742412845676,33.2,132.56,132.55,7.5434]
[1742412845876,0.04971289,132.53,132.51,33.2]
[1742412846076,33.2,132.59,132.51,33.2]
[1742412846373,0.04788031,132.53,132.51,33.2]
[1742412846573,34.4426293,132.58,132.54,0.05114955]
[1742412846776,41.9845293,132.58,132.53,7.5444]
[1742412846975,0.05461113,132.57,132.55,0.04791889]
[1742412847170,7.59701113,132.57,132.55,0.04791889]
[1742412847377,7.5424,132.57,132.52,7.5447]
[1742412847577,7.59365828,132.57,132.55,0.05729777]
[1742412847777,7.5428,132.56,132.55,0.05729777]
[1742412848170,0.05125828,132.57,132.55,0.05729777]
[1742412848374,0.05125828,132.57,132.49,7.5467]
[1742412848571,34.4426293,132.55,132.46,12.4334]
[1742412848770,7.5462,132.5,132.46,8.225]
[1742412849177,67.6426293,132.52,132.46,8.225]
[1742412849374,33.2,132.55,132.46,41.425]
[1742412849579,34.4426293,132.58,132.48,0.05509275]
[1742412849877,34.4426293,132.58,132.53,7.5442]
[1742412850077,34.4426293,132.58,132.5,33.2]
[1742412850479,34.4426293,132.58,132.52,7.5447]
[1742412850678,34.4426293,132.58,132.5,33.2]
[1742412850875,0.05453445,132.56,132.54,0.05517581]
[1742412851075,7.5434,132.55,132.54,0.05517581]
[1742412851382,33.2,132.55,132.46,41.425]
[1742412852283,34.4426293,132.53,132.46,8.225]
[1742412852480,34.4426293,132.53,132.49,0.04857361]
[1742412852481,226.4341071,132.52,132.49,0.04857361]
[1742412852683,41.9888293,132.5,132.49,7.361e-05]
[1742412853174,34.4426293,132.5,132.41,40.7311]
[1742412853381,34.4426293,132.5,132.41,33.18]
[1742412853576,34.4426293,132.47,132.4,8.18]
[1742412853774,34.4426293,132.47,132.38,4.0711]
[1742412853775,7.5513,132.41,132.38,4.0711]
[1742412853976,34.4426293,132.44,132.38,4.0711]
[1742412854280,7.5521,132.4,132.38,4.0711]
[1742412854678,7.5521,132.4,132.38,0.05206498]
[1742412854882,7.5525,132.39,132.38,0.05206498]
[1742412855981,7.56,132.39,132.31,8.1078]
[1742412856176,34.4426293,132.37,132.31,8.1078]
[1742412856385,7.5559,132.33,132.29,30.20777525]
[1742412856683,259.64,132.36,132.29,30.20777525]
[1742412857184,7.61090413,132.34,132.31,0.04751288]
[1742412857483,0.05550413,132.34,132.31,0.04751288]
[1742412858779,56.14978486,132.32,132.22,3.8643]
[1742412858983,33.2,132.31,132.22,7.8065]
[1742412859287,33.2,132.31,132.25,7.5603]
[1742412859990,0.05522489,132.29,132.27,0.05463123]
[1742412861680,365.0,132.41,132.27,63.76441609]
[1742412861885,365.0,132.41,132.26,33.2]
[1742412861886,365.0,132.41,132.3,56.14978486]
[1742412862080,365.0,132.41,132.31,8.0763]
[1742412862293,56.14978486,132.39,132.31,8.0763]
[1742412862588,33.2,132.38,132.31,8.0763]
[1742412862790,0.05029924,132.36,132.34,0.04824744]
[1742412863987,0.05029924,132.36,132.35,7.5548]
[1742412864596,0.05029924,132.36,132.34,7.60344744]
[1742412864997,0.05029924,132.36,132.34,0.04824744]
[1742412865493,33.2,132.41,132.34,0.04824744]
[1742412865693,33.2,132.41,132.34,33.24824744]
[1742412865892,33.2,132.41,132.34,33.2]
[1742412866195,33.2,132.41,132.31,41.2763]
[1742412866794,0.05199005,132.37,132.35,0.04786635]
[1742412867194,56.14978486,132.43,132.35,0.04786635]
[1742412867395,33.2,132.42,132.35,0.04786635]
[1742412867587,33.2,132.42,132.33,56.14978486]
[1742412867792,7.5526,132.39,132.31,41.2763]
[1742412868201,33.2,132.42,132.31,41.2763]
[1742412868492,0.05432337,132.36,132.34,0.04911351]
[1742412868700,7.5523,132.4,132.35,7.5544]
[1742412868893,0.05194813,132.36,132.35,7.5544]
[1742412869198,33.2,132.42,132.34,0.05432047]
[1742412869392,0.05325216,132.37,132.34,0.05432047]
[1742412869589,0.05325216,132.37,132.31,41.2763]
[1742412869899,0.05325216,132.37,132.34,0.04783517]
[1742412871001,0.05325216,132.37,132.36,7.5542]
[1742412871300,0.05325216,132.37,132.34,0.04783517]
[1742412871497,7.5546,132.36,132.34,0.04783517]
[1742412871700,0.05325216,132.37,132.34,0.04783517]
[1742412871701,56.20303702,132.37,132.34,0.04783517]
[1742412873197,7.5548,132.35,132.34,0.04783517]
[1742412873500,226.66,132.36,132.34,0.04783517]
[1742412873703,226.66,132.36,132.35,7.5548]
[1742412873903,226.66,132.36,132.34,0.04783517]
[1742412874792,226.66,132.36,132.35,7.5548]
[1742412875500,365.0785,132.47,132.35,33.2]
[1742412875501,226.66,132.42,132.35,33.2]
[1742412875696,56.14978486,132.46,132.36,64.46658486]
[1742412876000,89.34978486,132.46,132.36,64.46658486]
[1742412876402,7.5505,132.43,132.39,7.5522]
[1742412876594,89.34978486,132.46,132.36,8.3168]
[1742412876799,0.04771513,132.42,132.4,0.04766032]
[1742412876999,7.5513,132.41,132.4,0.04766032]
[1742412877901,33.24771513,132.42,132.4,0.04766032]
[1742412878097,33.24771513,132.42,132.32,33.18]
[1742412878291,33.24771513,132.42,132.29,3.9388]
[1742412878292,56.14978486,132.39,132.29,3.9388]
[1742412878498,259.84,132.38,132.29,3.9388]
[1742412879095,294.38213802,132.38,132.29,3.9388]
[1742412879301,0.04906103,132.35,132.32,0.04927087]
[1742412880709,0.04906103,132.35,132.34,7.5553]
[1742412881601,0.04906103,132.35,132.33,7.5557]
[1742412881808,0.04906103,132.35,132.32,33.22927087]
[1742412882204,0.04906103,132.35,132.33,7.5555]
[1742412882506,0.04906103,132.35,132.32,33.22927087]
[1742412882903,0.04906103,132.35,132.34,7.5553]
[1742412883902,0.04906103,132.35,132.33,7.5556]
[1742412884098,0.04906103,132.35,132.32,33.22927087]
[1742412884612,0.04906103,132.35,132.33,7.5559]
[1742412885210,0.04906103,132.35,132.32,33.22927087]
[1742412885411,0.04906103,132.35,132.32,0.04927087]
[1742412885904,7.5559,132.33,132.32,0.04927087]
[1742412887111,7.5582,132.29,132.25,4.0298]
[1742412887306,33.18,132.28,132.17,40.28872283]
[1742412887505,34.54213802,132.24,132.18,12.3662]
[1742412887805,33.18,132.23,132.18,12.3662]
[1742412888005,33.18,132.24,132.18,12.3662]
[1742412888207,226.66,132.29,132.18,45.5262]
[1742412888417,226.66,132.29,132.2,34.59593719]
[1742412888809,226.66,132.29,132.2,34.54213802]
[1742412889010,226.66,132.29,132.23,34.54213802]
[1742412889204,226.66,132.29,132.24,37.2948]
[1742412889405,226.66,132.29,132.26,7.5595]
[1742412889605,0.05789222,132.28,132.25,8.41753475]
[1742412890001,226.68,132.35,132.26,34.54213802]
[1742412890410,226.68,132.35,132.29,34.54213802]
[1742412890711,226.68,132.35,132.3,33.18]
[1742412891210,0.04775957,132.34,132.31,0.052704]
[1742412891403,226.68,132.35,132.31,0.052704]
[1742412891605,0.05447691,132.34,132.31,33.232704]
[1742412891906,0.05447691,132.34,132.32,4.175]
[1742412892207,226.68,132.35,132.34,7.5553]
[1742412892508,226.68,132.35,132.32,4.175]
[1742412892709,226.68,132.35,132.32,11.7315]
[1742412893106,226.68,132.35,132.32,4.175]
[1742412893508,226.68,132.35,132.31,0.052704]
[1742412893710,259.84,132.35,132.31,0.052704]
[1742412894411,259.84,132.35,132.31,7.609504]
[1742412894612,259.84,132.35,132.31,0.052704]
[1742412895516,7.5561,132.33,132.31,0.052704]
[1742412895813,259.84,132.35,132.31,0.052704]
[1742412896611,399.59295892,132.34,132.19,33.16]
[1742412896908,34.54213802,132.26,132.2,8.0385]
[1742412897114,7.5614,132.24,132.2,8.0385]
[1742412897414,33.16,132.25,132.2,8.0385]
[1742412897609,0.05262069,132.23,132.21,0.04957812]
[1742412899914,0.05262069,132.23,132.21,7.61197812]
[1742412900110,226.72,132.26,132.21,0.04957812]
[1742412900417,226.72,132.26,132.22,7.5622]
[1742412900617,226.72,132.26,132.21,0.04957812]
[1742412901921,7.5607,132.25,132.21,7.61217812]
[1742412902218,226.72,132.26,132.21,0.04957812]
[1742412902409,226.72,132.26,132.23,7.5612]
[1742412902611,34.54213802,132.3,132.21,0.04957812]
[1742412902817,226.78,132.32,132.22,34.54213802]
[1742412903017,7.5587,132.29,132.24,0.05173967]
[1742412903214,226.78,132.32,132.24,33.21173967]
[1742412903514,226.78,132.32,132.27,0.05024568]
[1742412904124,7.5579,132.3,132.27,0.05024568]
[1742412904425,226.78,132.32,132.27,0.05024568]
[1742412905114,1.51125887,132.34,132.28,33.16]
[1742412905318,1.51125887,132.34,132.29,8.1938]
[1742412905716,226.78,132.38,132.3,0.05442444]
[1742412905916,226.78,132.38,132.29,8.1938]
[1742412906219,226.78,132.38,132.33,0.05445061]
[1742412906419,226.78,132.38,132.33,33.21445061]
[1742412906620,34.54213802,132.36,132.33,0.05445061]
[1742412907320,7.5553,132.34,132.33,0.05445061]
[1742412907718,7.5553,132.34,132.22,15.1235]
[1742412907719,7.56,132.34,132.19,34.54213802]
[1742412907920,34.54213802,132.3,132.2,45.4266]
[1742412908111,67.70213802,132.3,132.2,45.4266]
[1742412908821,7.5567,132.32,132.28,7.5585]
[1742412909023,365.0,132.37,132.24,0.05268476]
[1742412909024,33.16,132.34,132.26,33.16]
[1742412909215,33.16,132.34,132.27,3.9336]
[1742412909415,0.05790908,132.31,132.29,0.05119587]
[1742412909618,67.70213802,132.3,132.21,33.16]
[1742412909812,7.5606,132.25,132.22,7.5621]
[1742412910019,7.5606,132.25,132.21,33.16]
[1742412910216,294.48213802,132.3,132.21,33.16]
[1742412910522,294.48213802,132.3,132.19,3.9336]
[1742412910917,0.04986456,132.26,132.24,0.0565926]
[1742412911318,33.18986456,132.26,132.24,0.0565926]
[1742412911817,0.04986456,132.26,132.24,33.1965926]
[1742412912026,226.78,132.3,132.24,33.1965926]
[1742412912418,226.78,132.3,132.29,7.5582]
[1742412912619,226.8,132.36,132.24,50.41106901]
[1742412912819,259.96,132.36,132.24,50.41106901]
[1742412913015,7.5552,132.35,132.31,7.5568]
[1742412913215,0.05603867,132.31,132.29,0.05175035]
[1742412913419,7.5562,132.33,132.29,7.5579]
[1742412913622,0.05421894,132.31,132.29,0.05676986]
[1742412913815,259.96,132.36,132.29,0.05676986]
[1742412914021,0.05702919,132.31,132.29,7.61456986]
[1742412914221,259.96,132.36,132.29,0.05676986]
[1742412914726,267.5145,132.36,132.29,0.05676986]
[1742412914922,0.05604715,132.34,132.29,0.05676986]
[1742412915523,0.05604715,132.34,132.33,7.5559]
[1742412916430,0.05604715,132.34,132.32,7.61316379]
[1742412916735,0.05604715,132.34,132.32,0.05686379]
[1742412916931,0.05604715,132.34,132.33,7.5559]
[1742412917530,34.54213802,132.4,132.32,33.19686379]
[1742412917728,34.54213802,132.4,132.32,33.14]
[1742412918237,226.78,132.42,132.32,50.41106901]
[1742412918726,226.78,132.42,132.36,0.05352915]
[1742412918932,226.78,132.42,132.36,33.19352915]
[1742412919235,34.54213802,132.4,132.36,0.05352915]
[1742412919434,67.68213802,132.4,132.36,0.05352915]
[1742412919936,33.14,132.4,132.36,0.05352915]
[1742412920437,226.78,132.42,132.36,0.05352915]
[1742412920735,7.5522,132.4,132.36,0.05352915]
[1742412920931,226.78,132.42,132.36,33.19352915]
[1742412921134,294.74993802,132.47,132.37,4.2649]
[1742412921431,34.54213802,132.44,132.37,4.2649]
[1742412921633,7.5508,132.42,132.41,0.05235537]
[1742412921845,33.12,132.43,132.33,4.2649]
[1742412922138,7.5533,132.38,132.33,11.8203]
[1742412922334,34.54213802,132.41,132.33,4.2649]
[1742412922830,67.66213802,132.44,132.33,4.2649]
[1742412923030,0.05538572,132.38,132.36,0.0478595]
[1742412923230,67.66213802,132.44,132.36,33.12]
[1742412923635,67.66213802,132.44,132.33,37.3849]
[1742412924032,34.54213802,132.41,132.33,4.2649]
[1742412924333,33.12,132.4,132.36,0.05167945]
[1742412924631,34.54213802,132.38,132.29,3.8673]
[1742412924935,34.54213802,132.35,132.25,4.0153]
[1742412925127,34.54213802,132.32,132.23,33.12]
[1742412925332,34.54213802,132.32,132.26,7.5596]
[1742412925333,7.5577,132.3,132.26,7.5596]
[1742412925530,34.54213802,132.32,132.23,73.83846156]
[1742412925740,0.05242539,132.29,132.27,0.04966287]
[1742412926140,0.05242539,132.29,132.23,73.83846156]
[1742412926141,42.15456341,132.29,132.23,40.71846156]
[1742412926334,7.5611,132.24,132.23,40.71846156]
[1742412926530,33.12,132.24,132.22,81.43692313]
[1742412926735,261.24213802,132.23,132.21,122.1553847]
[1742412927042,7.5622,132.22,132.21,122.1553847]
[1742412927238,7.5622,132.22,132.21,110.2588847]
[1742412927434,7.5622,132.22,132.21,70.39524266]
[1742412928137,290.56253542,132.23,132.21,70.39524266]
[1742412928343,226.7476461,132.23,132.21,70.39524266]
[1742412928739,226.7476461,132.23,132.21,0.05235796]
[1742412929344,283.00063542,132.23,132.21,0.05235796]
[1742412930134,226.7476461,132.23,132.21,0.05235796]
[1742412930340,283.00063542,132.23,132.21,0.05235796]
[1742412931545,7.5622,132.22,132.21,0.05235796]
[1742412931844,283.00063542,132.23,132.21,0.05235796]
[1742412932040,226.7476461,132.23,132.21,0.05235796]
[1742412932545,234.3096461,132.23,132.21,0.05235796]
[1742412932746,226.7476461,132.23,132.21,0.05235796]
[1742412933044,7.5622,132.22,132.21,0.05235796]
[1742412933547,15.1222,132.22,132.21,0.05235796]
[1742412933745,283.00063542,132.23,132.21,0.05235796]
[1742412934453,7.5622,132.22,132.21,0.05235796]
[1742412935651,15.1222,132.22,132.21,5.796e-05]
[1742412935953,283.00063542,132.23,132.21,5.796e-05]
[1742412936455,33.12,132.22,132.21,5.796e-05]
[1742412937054,40.6822,132.22,132.21,5.796e-05]
[1742412937351,33.12,132.22,132.21,5.796e-05]
[1742412937550,40.6822,132.22,132.21,5.796e-05]
[1742412937750,283.00063542,132.23,132.21,5.796e-05]
[1742412937948,33.12,132.22,132.21,5.796e-05]
[1742412938450,259.8676461,132.23,132.21,5.796e-05]
[1742412938952,226.7476461,132.23,132.21,5.796e-05]
[1742412940857,7.5622,132.22,132.21,5.796e-05]
[1742412941049,226.7476461,132.23,132.21,5.796e-05]
[1742412941452,7.5622,132.22,132.21,5.796e-05]
[1742412942156,15.1222,132.22,132.21,5.796e-05]
[1742412942364,7.5659,132.16,132.12,4.0753]
[1742412942558,33.12,132.16,132.12,4.0753]
[1742412942856,7.5671,132.14,132.07,4.2695]
[1742412943162,226.92,132.15,132.08,4.0377]
[1742412943550,0.05380699,132.13,132.1,0.05418739]
[1742412943749,0.05380699,132.13,132.12,7.5679]
[1742412943957,1.31723381,132.23,132.11,56.25298932]
[1742412944151,33.12,132.23,132.18,7.5642]
[1742412944565,33.12,132.23,132.15,37.1577]
[1742412945063,0.05799251,132.2,132.18,0.05020112]
[1742412945566,33.12,132.19,132.18,0.05020112]
[1742412946267,40.6839,132.19,132.18,0.05020112]
[1742412947264,33.12,132.19,132.09,33.12]
[1742412948368,0.04901837,132.15,132.13,0.05707056]
[1742412949467,7.5668,132.14,132.13,0.05707056]
[1742412949868,7.5686,132.11,132.06,4.1509]
[1742412950271,33.12,132.15,132.06,4.1509]
[1742412950773,7.568,132.12,132.08,7.5698]
[1742412951070,0.05119894,132.11,132.09,0.05271886]
[1742412951271,7.61989894,132.11,132.09,0.05271886]
[1742412951471,0.05119894,132.11,132.09,0.05271886]
[1742412952066,0.05119894,132.11,132.09,7.62201886]
[1742412952266,0.05119894,132.11,132.09,0.05271886]
[1742412952962,0.05119894,132.11,132.09,7.62231886]
[1742412953267,0.05119894,132.11,132.09,0.05271886]
[1742412953469,0.05119894,132.11,132.09,7.62201886]
[1742412953768,0.05119894,132.11,132.09,0.05271886]
[1742412954068,0.05119894,132.11,132.1,7.5691]
[1742412954666,267.6458,132.16,132.12,7.5676]
[1742412954867,267.6458,132.16,132.08,33.12]
[1742412955066,226.96,132.16,132.08,33.12]
[1742412955272,226.96,132.16,132.11,7.5681]
[1742412955273,7.5665,132.15,132.11,7.5681]
[1742412955471,7.5665,132.15,132.08,33.12]
[1742412955472,260.08,132.16,132.08,33.12]
[1742412955971,260.08,132.16,132.11,0.05190835]
[1742412955972,0.05343726,132.13,132.11,0.05190835]
[1742412956270,7.5679,132.12,132.11,0.05190835]
[1742412956471,0.05343726,132.13,132.11,0.05190835]
[1742412957474,7.62103726,132.13,132.11,0.05190835]
[1742412958177,7.5679,132.12,132.11,0.05190835]
[1742412958364,0.05343726,132.13,132.11,0.05190835]
[1742412960477,0.05343726,132.13,132.12,7.5679]
[1742412960778,0.05343726,132.13,132.11,0.05190835]
[1742412961373,0.05343726,132.13,132.12,7.5679]
[1742412961576,0.05343726,132.13,132.11,0.05190835]
[1742412961878,0.05343726,132.13,132.12,7.5679]
[1742412962072,41.79898938,132.18,132.11,0.05190835]
[1742412962879,10.44974734,132.17,132.11,0.05190835]
[1742412963067,31.34924204,132.18,132.17,7.5651]
[1742412963467,31.34924204,132.18,132.14,33.12]
[1742412963672,31.34924204,132.18,132.16,7.61709334]
[1742412964074,31.34924204,132.18,132.16,0.05199334]
[1742412964575,31.34924204,132.18,132.17,7.5651]
[1742412964778,31.34924204,132.18,132.16,0.05199334]
[1742412965076,38.91394204,132.18,132.16,7.61729334]
[1742412965278,31.34924204,132.18,132.16,7.61729334]
[1742412965677,7.5648,132.18,132.16,0.05199334]
[1742412966080,0.0509245,132.19,132.16,0.05199334]
[1742412966580,31.34924204,132.22,132.16,0.05199334]
[1742412967081,31.34924204,132.22,132.18,34.63242112]
[1742412967270,24.90934204,132.22,132.19,33.1]
[1742412967470,24.90934204,132.22,132.21,7.5628]
[1742412967682,13.46456124,132.22,132.21,7.5628]
[1742412967876,114.99366641,132.24,132.22,7.5622]
[1742412968174,114.99366641,132.24,132.19,33.1]
[1742412968381,114.99366641,132.24,132.21,7.5624]
[1742412968676,114.99366641,132.24,132.16,33.1]
[1742412969183,149.62608753,132.24,132.19,0.04816603]
[1742412969383,153.61118753,132.24,132.19,0.04816603]
[1742412969772,4.2576,132.23,132.19,0.04816603]
[1742412969978,7.5633,132.2,132.19,0.04816603]
[1742412970182,33.1,132.21,132.19,0.04816603]
[1742412971183,40.6631,132.21,132.19,0.04816603]
[1742412971585,7.5631,132.21,132.19,0.04816603]
[1742412971880,7.5633,132.2,132.19,0.04816603]
[1742412972785,7.565,132.18,132.12,33.08]
[1742412972987,33.08,132.18,132.1,37.01]
[1742412973482,33.08,132.18,132.11,3.8659]
[1742412973683,226.98,132.19,132.16,7.5652]
[1742412974088,227.02816603,132.19,132.16,0.05024796]
[1742412974277,227.02816603,132.19,132.17,7.5647]
[1742412974477,227.02816603,132.19,132.16,0.05024796]
[1742412975292,227.02816603,132.19,132.16,7.61564796]
[1742412975487,227.02816603,132.19,132.16,0.05024796]
[1742412975887,227.02816603,132.19,132.17,7.5647]
[1742412976493,260.06,132.25,132.18,33.08]
[1742412976686,7.5614,132.24,132.19,4.2706]
[1742412976888,7.5614,132.24,132.21,7.5625]
[1742412977087,260.06,132.25,132.19,4.2706]
[1742412977088,226.98,132.25,132.19,4.2706]
[1742412977690,226.98,132.25,132.21,0.05703454]
[1742412978596,106.91030384,132.29,132.22,33.08]
[1742412979094,106.91030384,132.29,132.28,7.5588]
[1742412979688,94.02670384,132.29,132.28,7.5588]
[1742412979898,87.58490384,132.29,132.28,7.5588]
[1742412980199,226.94,132.31,132.27,7.6094743]
[1742412980492,226.94,132.31,132.27,0.0504743]
[1742412980990,226.94,132.31,132.3,7.5576]
[1742412981192,87.58490384,132.33,132.27,0.0504743]
[1742412982102,7.5585,132.29,132.27,0.0504743]
[1742412984998,33.06,132.34,132.27,0.0504743]
[1742412985390,34.63242112,132.32,132.27,0.0504743]
[1742412985595,7.5588,132.28,132.27,0.0504743]
[1742412985800,34.63242112,132.32,132.27,0.0504743]
[1742412985801,33.06,132.3,132.27,0.0504743]
[1742412986294,7.5587,132.29,132.27,0.0504743]
[1742412986693,40.6179,132.3,132.27,0.0504743]
[1742412986903,34.63242112,132.29,132.19,33.06]
[1742412987198,7.5596,132.27,132.19,33.06]
[1742412987399,38.92022112,132.29,132.24,7.5609]
[1742412987595,38.92022112,132.29,132.19,50.37669814]
[1742412987794,4.2878,132.29,132.19,50.37669814]
[1742412987996,4.2878,132.29,132.26,7.5597]
[1742412988190,4.2878,132.29,132.19,50.37669814]
[1742412988191,7.5591,132.28,132.23,33.08806444]
[1742412988495,0.0504743,132.29,132.27,7.5592]